Cogmind - Beta 12 --- EXPLORER MODE // 2023.03.04 @ 14:31:29 Player: viper Result: Core destroyed Performance ------------- Evolutions (7) 3500 Regions Visited (10) 2000 Robots Destroyed (230) 1150 Value Destroyed (8825) 8825 Prototype IDs (7) 140 Alien Tech Used (0) 0 Bonus (153) 153 TOTAL SCORE: 15768 Bonus ------- High Alert Combat Kills 99 Follower Combat Kills 54 Cogmind --------- Core Integrity 0/1300 Matter 288/500 Energy 81/100 System Corruption 9% Temperature Critical (870) Movement Walking (260) Ox2 Location -3/Research Parts ------- > --- POWER (3) -------- Light Angular Momentum Engine > --- PROPULSION (6) --- Improved Titanium Leg Myomer Leg Myomer Leg > --- UTILITY (7) ------ Cryofiber Web Huge Storage Unit High-capacity Matter Pod Improved Targeting Computer Improved Armor Integrity Analyzer Experimental Hacking Suite > --- WEAPON (6) ------- Flak Gun KE Penetrator Railgun Heavy Flak Cannon Compact Mass Driver > --- INVENTORY (25) --- Light Antimatter Reactor Carbon-fiber Leg Flexi-carbon Leg Flexi-carbon Leg Myomer Leg Power Amplifier Improved Heat Sink Advanced Target Analyzer Experimental Reaction Control System Quantum Rifle Quantum Rifle Light Assault Rifle Minigun Improved Datajack Improved Datajack Phasing Sabre Peak State ------------ > --- POWER ------------ Light Angular Momentum Engine Light Antimatter Reactor Light Antimatter Reactor > --- PROPULSION ------- Improved Titanium Leg Flexi-carbon Leg Myomer Leg Myomer Leg Myomer Leg Advanced VSS Leg > --- UTILITY ---------- Cryofiber Web Huge Storage Unit High-capacity Matter Pod Matter Compressor Improved Targeting Computer Improved Armor Integrity Analyzer Experimental Hacking Suite > --- WEAPON ----------- Coil Gun Coil Gun KE Penetrator KE Penetrator Railgun Compact Mass Driver > --- INVENTORY -------- Carbon-fiber Leg Carbon-fiber Leg Myomer Leg Advanced VSS Leg Power Amplifier Improved Heat Sink Advanced Target Analyzer Experimental Reaction Control System Quantum Rifle Quantum Rifle Light Assault Rifle Minigun Flak Gun Coil Gun Heavy Flak Cannon Compact Mass Driver Improved Datajack Improved Datajack Phasing Sabre [Rating: 131] Favorites ----------- Power F-cell Engine Engine F-cell Engine Power Core Neutrino Core Reactor Particle Reactor Propulsion Carbon-fiber Leg Leg Carbon-fiber Leg Utility Huge Storage Unit Device Terrain Scanner Storage Huge Storage Unit Processor Visual Processing Unit Hackware Experimental Hacking Suite Protection Improved Core Shielding Weapon Coil Gun Ballistic Gun Coil Gun Ballistic Cannon Heavy Assault Cannon Slashing Weapon Phasing Sabre Special Melee Weapon Improved Datajack Build | -11 -10 -9 -8 -7 -6 -5 -4 -4 -4 -3 ------- Run | Jun Mat Mat Mat Fac Fac Fac Fac Upp Upp Res Slots Evolved 15 | . 1 2 2 2 2 2 2 . . 2 Power 2 | . . . 1 . . 1 . . . . Propulsion 4 | . . 2 . . 2 . . . . . Utility 5 | . 1 . 1 2 . . 1 . . . Weapon 4 | . . . . . . 1 1 . . 2 Parts Attached 137 | 7 2 2 11 19 29 24 2 5 . 36 Power 20 | 1 . . 3 2 4 5 . 2 . 3 Engine 15 | 1 . . 2 2 4 4 . 1 . 1 Core 2 | . . . 1 . . 1 . . . . Reactor 3 | . . . . . . . . 1 . 2 Propulsion 53 | 2 . 2 4 5 17 11 . 1 . 11 Treads . | . . . . . . . . . . . Leg 53 | 2 . 2 4 5 17 11 . 1 . 11 Wheel . | . . . . . . . . . . . Hover . | . . . . . . . . . . . Flight . | . . . . . . . . . . . Utility 23 | 2 2 . 2 5 3 1 1 2 . 5 Device 9 | . 1 . . 3 1 . . 1 . 3 Storage 5 | 1 1 . . 1 . 1 . 1 . . Processor 5 | . . . 2 1 1 . . . . 1 Hackware 1 | . . . . . . . . . . 1 Protection 3 | 1 . . . . 1 . 1 . . . Artifact . | . . . . . . . . . . . Weapon 41 | 2 . . 2 7 5 7 1 . . 17 Energy Gun . | . . . . . . . . . . . Energy Cannon . | . . . . . . . . . . . Ballistic Gun 32 | 2 . . 2 4 4 6 1 . . 13 Ballistic Cannon 6 | . . . . 1 1 1 . . . 3 Launcher . | . . . . . . . . . . . Special Weapon . | . . . . . . . . . . . Impact Weapon . | . . . . . . . . . . . Slashing Weapon 1 | . . . . . . . . . . 1 Piercing Weapon . | . . . . . . . . . . . Special Melee Weapon 2 | . . . . 2 . . . . . . Unidentified Prototypes 5 | . . . . 1 1 . . . . 3 Parts Lost 50 | . . . 2 2 8 13 1 2 . 22 Power 11 | . . . 1 . 1 3 1 . . 5 Propulsion 17 | . . . . . 3 7 . . . 7 Utility 8 | . . . 1 1 2 1 . 2 . 1 Weapon 14 | . . . . 1 2 2 . . . 9 Highest Loss Streak 10 | . . . 1 1 2 7 1 2 . 10 To Critical Strikes 2 | . . . . . . . . . . 2 Average Slot Usage (%) 96 | . 100 97 99 99 94 95 98 96 100 97 Engine 10 | . 12 10 8 14 11 14 8 8 5 3 Core 2 | . . . 7 . . . 5 5 5 2 Leg 31 | . 25 37 33 28 36 29 30 30 30 25 Device 6 | . 12 10 8 11 7 . . 1 5 5 Storage 9 | . 12 10 8 12 7 9 10 13 15 12 Processor 13 | . . . 14 17 16 16 15 15 15 10 Protection 3 | . 12 10 . . 4 5 10 3 . . Ballistic Gun 14 | . 25 20 16 12 3 15 19 20 20 25 Ballistic Cannon 1 | . . . . . 4 . . . . . Naked Turns . | . . . . . . . . . . . Heaviest Build 165 | 19 90 90 97 108 119 138 144 154 154 165 Greatest Support 133 | 20 20 43 58 71 109 108 107 115 115 133 Greatest Overweight (x) 4 | . 4 2 2 2 1 1 1 1 1 2 Average Overweight (x) 1 | . 2 2 1 1 . 1 1 1 1 1 Largest Inventory Capacity 25 | 10 25 25 25 25 25 25 25 25 25 25 Average Capacity 24 | 8 22 25 25 25 25 25 25 25 25 25 Most Carried 25 | 3 11 7 20 25 25 24 23 25 25 25 Average Carried 19 | 1 4 6 14 22 24 19 22 23 25 22 Final Capacity 25 | 10 25 25 25 25 25 25 25 25 25 25 Final Carried 25 | 3 7 7 20 25 21 24 23 25 25 16 Class Distribution -------------------- 51% | Hacker-Mutant 15% | Hacker-Skirmisher 12% | Scavenger-Gunner 9% | Hacker-Gunner 8% | Scavenger-Executioner Dominant Class ---------------- Hacker-Mutant | -10/Materials Hacker-Mutant | -9/Materials Hacker-Skirmisher | -8/Materials Hacker-Mutant | -7/Factory Hacker-Mutant | -6/Factory Hacker-Gunner | -5/Factory Scavenger-Gunner | -4/Factory Scavenger-Gunner | -4/Upper Caves Scavenger-Gunner | -4/Upper Caves Scavenger-Executioner | -3/Research Resources | -11 -10 -9 -8 -7 -6 -5 -4 -4 -4 -3 ----------- Run | Jun Mat Mat Mat Fac Fac Fac Fac Upp Upp Res Matter Collected 7834 | 191 183 180 911 413 2074 1259 132 328 . 2163 Remotely . | . . . . . . . . . . . Salvage Created 11777 | . 240 546 1301 573 2619 2318 222 604 . 3354 Parts 498 | . 21 26 61 21 108 94 4 25 . 138 Haulers Intercepted 17 | . 1 1 5 . 5 4 . . . 1 Recyclers Shooed 14 | . . 2 4 . 3 4 . . . 1 Parts Field Recycled . | . . . . . . . . . . . Retrieved Matter . | . . . . . . . . . . . Parts Self-Destructed . | . . . . . . . . . . . Prevented . | . . . . . . . . . . . Kills | -11 -10 -9 -8 -7 -6 -5 -4 -4 -4 -3 ------- Run | Jun Mat Mat Mat Fac Fac Fac Fac Upp Upp Res Combat Hostiles Destroyed 158 | . 5 7 23 10 33 27 1 12 . 40 Guns 132 | . 5 7 23 9 12 24 1 12 . 39 Cannons 26 | . . . . 1 21 3 . . . 1 Classes Destroyed 19 | . 4 4 3 2 1 1 . . . 4 Worker 14 | . . . 3 . 5 3 . . . 3 Builder 5 | . . . 1 . 3 1 . . . . Tunneler 2 | . . . . . . 1 . . . 1 Hauler 17 | . 1 1 5 . 5 4 . . . 1 Recycler 17 | . . 1 2 1 6 3 1 . . 3 Mechanic 1 | . . 1 . . . . . . . . Operator 4 | . . . . . 4 . . . . . Watcher 12 | . 2 1 2 1 3 2 . . . 1 Swarmer 37 | . 2 . 13 2 6 3 . 6 . 5 Grunt 58 | . 3 4 4 4 16 12 . 3 . 12 Brawler 3 | . . 1 1 . 1 . . . . . Duelist 4 | . . . 1 . . . . 2 . 1 Protector 1 | . . . . . . . . . . 1 Sentry 18 | . . 2 4 . 3 3 1 1 . 4 Specialist 2 | . . . . . . . . . . 2 Hunter 14 | . . . . 2 2 3 . . . 7 Programmer 19 | . . . . 2 5 6 . . . 6 Heavy 1 | . . . . . . . . . . 1 Striker 1 | . . . . . . . . . . 1 Best Kill Streak 11 | . 3 3 11 3 9 11 2 9 . 8 Combat Bots Only 9 | . 3 3 9 2 6 5 1 9 . 7 Max Kills in Single Turn 3 | . 1 1 2 1 2 1 1 2 . 3 Gunslinging 2 | . . . 1 . . . . 1 . 2 Exploded . | . . . . . . . . . . . Melee . | . . . . . . . . . . . Uniques/NPCs Destroyed . | . . . . . . . . . . . Combat | -11 -10 -9 -8 -7 -6 -5 -4 -4 -4 -3 -------- Run | Jun Mat Mat Mat Fac Fac Fac Fac Upp Upp Res Damage Taken 10201 | . 138 183 696 397 2109 1672 223 415 . 4368 Core 2020 | . 24 . 89 48 188 150 50 57 . 1414 Absorbed by Shields . | . . . . . . . . . . . Redirected to Shielding 214 | . 15 28 18 . 26 48 51 28 . . Regen/Repaired (Parts) 399 | . . . 41 . . . . . . 358 Core Remaining (%) 89 | 100 90 100 83 93 77 85 . . 90 . Volleys Fired 580 | . 29 32 96 44 175 107 3 18 . 76 Largest 6 | . 2 2 2 2 2 3 4 4 . 6 Hottest 250 | . 40 40 50 60 60 106 120 120 . 250 Shots Fired 1454 | . 58 64 192 76 240 301 12 72 . 439 Gun 1329 | . 58 64 192 75 134 290 12 72 . 432 Cannon 125 | . . . . 1 106 11 . . . 7 Launcher . | . . . . . . . . . . . Special . | . . . . . . . . . . . Kinetic 1454 | . 58 64 192 76 240 301 12 72 . 439 Thermal . | . . . . . . . . . . . Explosive . | . . . . . . . . . . . Electromagnetic . | . . . . . . . . . . . Robot Hit Streak 78 | . 16 18 22 76 78 57 27 72 . 21 Robot Miss Streak 5 | . 1 1 2 . 2 2 . 1 . 5 Penetration Max 2 | . . . . . 1 1 . 1 . 2 Secondary Targets 34 | . 1 1 10 1 2 3 . 4 . 12 Max Gunslinging Chain 2 | . 1 1 1 1 1 1 . 1 . 2 Shots Hit Robots 1181 | . 47 56 150 82 214 256 7 55 . 314 Core Hits 502 | . 13 23 49 27 92 123 6 23 . 146 Critical Kills 13 | . . . 1 . . 1 1 1 . 9 Critical Parts Destroyed 16 | . . . . 1 . 7 . 1 . 7 Critical Strikes 42 | . . . 1 1 10 8 1 3 . 18 Destroy 31 | . . . 1 1 . 8 1 3 . 17 Blast 11 | . . . . . 10 . . . . 1 Melee Attacks 12 | . . . . 12 . . . . . . Impact . | . . . . . . . . . . . Slashing . | . . . . . . . . . . . Piercing . | . . . . . . . . . . . Sneak Attacks 10 | . . . . 10 . . . . . . Combat Hostiles . | . . . . . . . . . . . Follow-up Attacks . | . . . . . . . . . . . Damage Inflicted 26293 | . 483 574 2509 1170 6909 5004 149 1295 . 8200 Guns 20256 | . 483 567 2490 1093 1662 4707 149 1295 . 7810 Cannons 5764 | . . . . 41 5209 297 . . . 217 Explosions 173 | . . . . . . . . . . 173 Melee . | . . . . . . . . . . . Ramming 100 | . . 7 19 36 38 . . . . . Kinetic 26020 | . 483 567 2490 1134 6871 5004 149 1295 . 8027 Thermal . | . . . . . . . . . . . Explosive 122 | . . . . . . . . . . 122 Electromagnetic 51 | . . . . . . . . . . 51 Impact . | . . . . . . . . . . . Slashing . | . . . . . . . . . . . Piercing . | . . . . . . . . . . . Highest Corruption 9 | . 1 . . . 2 5 . . . 9 Average Corruption 2 | . 1 . . . 1 3 . . . 4 Corruption Purged . | . . . . . . . . . . . Corruption Blocked . | . . . . . . . . . . . Effects 65 | . . . . . 32 21 . . . 12 Message Errors 16 | . . . . . 10 4 . . . 2 Matter Fused 15 | . . . . . 8 6 . . . 1 Heat Flow Errors 5 | . . . . . 3 1 . . . 1 Energy Discharges 6 | . . . . . 3 3 . . . . Parts Rejected 2 | . . . . . 1 . . . . 1 Data Loss (minor) 8 | . . . . . 2 5 . . . 1 Data Loss (major) 5 | . . . . . 1 1 . . . 3 Misfires 2 | . . . . . 1 . . . . 1 Alerts 2 | . . . . . 1 1 . . . . Weapon Failures 4 | . . . . . 2 . . . . 2 Overload Shots . | . . . . . . . . . . . Overflow Damage 403 | . . . . . 373 . . . . 30 Projectiles 392 | . . . . . 373 . . . . 19 Explosions 11 | . . . . . . . . . . 11 Melee . | . . . . . . . . . . . Knockbacks 42 | . . . 1 . 26 9 . . . 6 Impact 1 | . . . 1 . . . . . . . Kinetic 38 | . . . . . 25 9 . . . 4 Secondary 3 | . . . . . 1 . . . . 2 Self-Inflicted Damage 206 | . . . . . . . 184 . . 22 Shots 4 | . . . . . . . 3 . . 1 Rammed . | . . . . . . . . . . . Targets Rammed 8 | . . 1 3 2 2 . . . . . Kicked 8 | . . 1 3 2 2 . . . . . Crushed . | . . . . . . . . . . . Highest Temperature 1060 | . 19 6 149 . 139 257 95 406 . 1060 Average Temperature 146 | . 10 3 30 . 47 82 42 213 . 254 Received Heat Transfer 2941 | . 123 105 297 153 1150 558 9 84 . 462 Effects 35 | . . . . . . . . 5 . 30 Shutdowns 5 | . . . . . . . . 3 . 2 Energy Bleed 3 | . . . . . . . . 1 . 2 Interference 2 | . . . . . . . . . . 2 Matter Decay 5 | . . . . . . . . . . 5 Short Circuit 6 | . . . . . . . . . . 6 Damage (minor) 4 | . . . . . . . . 1 . 3 Damage (major) 4 | . . . . . . . . . . 4 Damage (core) 6 | . . . . . . . . . . 6 Siege Activations . | . . . . . . . . . . . Robots Corrupted . | . . . . . . . . . . . Combat Hostiles . | . . . . . . . . . . . Parts Fried . | . . . . . . . . . . . Impact Corruptions . | . . . . . . . . . . . Robots Melted . | . . . . . . . . . . . Combat Hostiles . | . . . . . . . . . . . Parts Melted . | . . . . . . . . . . . Heat Transferred . | . . . . . . . . . . . Parts Sabotaged . | . . . . . . . . . . . Parts Stolen . | . . . . . . . . . . . Parts Stripped . | . . . . . . . . . . . Power Chain Reactions . | . . . . . . . . . . . Missiles Intercepted . | . . . . . . . . . . . Alert | -11 -10 -9 -8 -7 -6 -5 -4 -4 -4 -3 ------- Run | Jun Mat Mat Mat Fac Fac Fac Fac Upp Upp Res Peak Influence 465 | . 108 211 284 152 326 321 119 . . 465 Initial 117 | . . 29 20 93 5 117 25 . . . Average 80 | . 52 75 79 51 59 133 43 . . 140 Maximum Alert Level 2 | . . 1 1 . 1 1 . . . 2 Low Security (%) 90 | 100 100 97 90 100 95 77 100 . . 70 Level 1 8 | . . 2 9 . 4 22 . . . 20 Level 2 . | . . . . . . . . . . 8 Level 3 . | . . . . . . . . . . . Level 4 . | . . . . . . . . . . . Level 5 . | . . . . . . . . . . . High Security . | . . . . . . . . . . . Max Security . | . . . . . . . . . . . Squads Dispatched 32 | . . 1 2 4 11 6 1 . . 7 Investigation 9 | . . 1 . 2 2 2 . . . 2 Extermination 11 | . . . . 2 5 2 1 . . 1 Reinforcement 10 | . . . . . 4 2 . . . 4 Assault . | . . . . . . . . . . . Garrison 2 | . . . 2 . . . . . . . Intercept . | . . . . . . . . . . . Searches Triggered . | . . . . . . . . . . . Construction Impeded 2 | . . . . . 2 . . . . . Haulers Reinforced 4 | . . . . . . 2 . . . 2 Active Scanning Responses . | . . . . . . . . . . . Cargo Convoy Interrupts 1 | . . . . . . . . . . 1 Stealth | -11 -10 -9 -8 -7 -6 -5 -4 -4 -4 -3 --------- Run | Jun Mat Mat Mat Fac Fac Fac Fac Upp Upp Res Distress Signals 12 | . 2 1 3 2 1 . . . . 3 Communications Jammed . | . . . . . . . . . . . Distress Signals . | . . . . . . . . . . . Times Spotted 209 | . 14 12 31 14 43 33 3 13 . 46 Peak Tracking Total 9 | . 3 4 6 3 6 5 2 9 . 9 Tactical Retreats 5 | . 1 1 . . 2 . . 1 . . Traps | -11 -10 -9 -8 -7 -6 -5 -4 -4 -4 -3 ------- Run | Jun Mat Mat Mat Fac Fac Fac Fac Upp Upp Res Traps Triggered 7 | . . . 2 . 3 1 . . . 1 Indirectly . | . . . . . . . . . . . Trap Hack Attempts . | . . . . . . . . . . . Triggered . | . . . . . . . . . . . Disarmed 3 | . . 3 . . . . . . . . Reprogrammed . | . . . . . . . . . . . Reused . | . . . . . . . . . . . Traps Extracted . | . . . . . . . . . . . Installed . | . . . . . . . . . . . Triggered 1 | . . . . . . . . 1 . . Machines | -11 -10 -9 -8 -7 -6 -5 -4 -4 -4 -3 ---------- Run | Jun Mat Mat Mat Fac Fac Fac Fac Upp Upp Res Machines Disabled 9 | . . . . . 3 1 3 . . 2 Max in Single Turn 2 | . . . . . 1 1 2 . . 1 Garrison Access 2 | . . . 1 . 1 . . . . . Machines Repaired . | . . . . . . . . . . . Machines Sabotaged . | . . . . . . . . . . . Overloaded Fab Kills . | . . . . . . . . . . . Hacking | -11 -10 -9 -8 -7 -6 -5 -4 -4 -4 -3 --------- Run | Jun Mat Mat Mat Fac Fac Fac Fac Upp Upp Res Machines Accessed 23 | . 5 3 2 2 4 3 . 1 . 3 Terminals 13 | . 4 3 . . 2 3 . . . 1 Fabricators 1 | . . . . . . . . . . 1 Repair Stations 2 | . . . 1 . . . . . . 1 Recycling Units 3 | . 1 . . 2 . . . . . . Scanalyzers 1 | . . . . . 1 . . . . . Garrison Access 2 | . . . 1 . 1 . . . . . Total Hacks 83 | . 20 15 4 6 11 8 . 1 . 18 Successful 63 | . 14 12 3 3 8 6 . 1 . 16 Failed 20 | . 6 3 1 3 3 2 . . . 2 Catastrophic 1 | . . 1 . . . . . . . . Database Lockouts . | . . . . . . . . . . . Manual 3 | . 1 1 . . . . . . . 1 Terminals 51 | . 13 15 . . 5 8 . . . 10 Fabricators 2 | . . . . . . . . . . 2 Repair Stations 8 | . . . 2 . . . . . . 6 Recycling Units 13 | . 7 . . 6 . . . . . . Scanalyzers 5 | . . . . . 5 . . . . . Garrison Access 3 | . . . 2 . 1 . . . . . Terminal Hacks 33 | . 6 11 . . 2 6 . 1 . 7 Record 5 | . . 4 . . . 1 . . . . Robot Schematic 1 | . . . . . 1 . . . . . Prototype ID Bank 1 | . . . . . . 1 . . . . Open Door 1 | . . . . . . . . 1 . . Level Access Points 2 | . 1 . . . . 1 . . . . Branch Access Points 1 | . . . . . . . . . . 1 Emergency Access Points 1 | . . . . . . . . . . 1 Terminal Index 1 | . . 1 . . . . . . . . Recycling Unit Index 1 | . 1 . . . . . . . . . Alert Level 1 | . . 1 . . . . . . . . Locate Traps 3 | . 2 1 . . . . . . . . Disarm Traps 1 | . . 1 . . . . . . . . Dispatch Records 2 | . 1 . . . . . . . . 1 Reinforcement Status 1 | . . 1 . . . . . . . . Hauler Manifests 2 | . . 1 . . . . . . . 1 Registered Components 1 | . . . . . . . . . . 1 Registered Prototypes 1 | . . . . . . . . . . 1 Zone Layout 7 | . 1 1 . . 1 3 . . . 1 Fabricator Hacks 2 | . . . . . . . . . . 2 Load Schematic 1 | . . . . . . . . . . 1 Build 1 | . . . . . . . . . . 1 Repair Station Hacks 8 | . . . 2 . . . . . . 6 Scan Component 4 | . . . 1 . . . . . . 3 Repair 4 | . . . 1 . . . . . . 3 Recycling Unit Hacks 10 | . 7 . . 3 . . . . . . Recycle Component 6 | . 4 . . 2 . . . . . . Process 4 | . 3 . . 1 . . . . . . Scanalyzer 5 | . . . . . 5 . . . . . Insert Component 3 | . . . . . 3 . . . . . Analyze 2 | . . . . . 2 . . . . . Garrison Access Hacks 2 | . . . 1 . 1 . . . . . Seal Access 2 | . . . 1 . 1 . . . . . Unauthorized Hacks 3 | . 1 1 . . . . . . . 1 Terminals 3 | . 1 1 . . . . . . . 1 Track 3 | . 1 1 . . . . . . . 1 Fabricators . | . . . . . . . . . . . Repair Stations . | . . . . . . . . . . . Recycling Units . | . . . . . . . . . . . Scanalyzers . | . . . . . . . . . . . Garrison Access . | . . . . . . . . . . . Data Cores Recovered 1 | . . . . . 1 . . . . . Used . | . . . . . . . . . . . Hacking Detections 19 | . 5 3 1 2 3 2 . . . 3 Full Trace Events 12 | . 3 1 . 2 2 2 . . . 2 Feedback Events 2 | . 1 . . . . 1 . . . . Corruption 2 | . 1 . . . . 1 . . . . Feedback Blocked . | . . . . . . . . . . . Robot Schematics Acquired 1 | . . . . . 1 . . . . . Robots Built 2 | . . . . . . . . . . 2 Authchips . | . . . . . . . . . . . Time 152 | . . . . . . . . . . 152 Total Robot Build Rating 10 | . . . . . . . . . . 10 Part Schematics Acquired 2 | . . . . . 2 . . . . . Parts Built . | . . . . . . . . . . . Authchips . | . . . . . . . . . . . Time . | . . . . . . . . . . . Total Part Build Rating . | . . . . . . . . . . . Parts Repaired 4 | . . . 1 . . . . . . 3 Time 176 | . . . 26 . . . . . . 150 Parts Recycled 6 | . 4 . . 2 . . . . . . Recycled Matter 392 | . 345 . . 47 . . . . . . Retrieved Matter . | . . . . . . . . . . . Retrieved Components . | . . . . . . . . . . . Parts Scanalyzed 2 | . . . . . 2 . . . . . Part Schematics Acquired 2 | . . . . . 2 . . . . . Parts Damaged . | . . . . . . . . . . . Bothacking | -11 -10 -9 -8 -7 -6 -5 -4 -4 -4 -3 ------------ Run | Jun Mat Mat Mat Fac Fac Fac Fac Upp Upp Res Used RIF Installer . | . . . . . . . . . . . Robots Hacked 6 | . . . . 6 . . . . . . Non-combat 6 | . . . . 6 . . . . . . Combat . | . . . . . . . . . . . Robot Hacks Applied 7 | . . . . 7 . . . . . . parse_system 1 | . . . . 1 . . . . . . no_distress 2 | . . . . 2 . . . . . . find_chute 2 | . . . . 2 . . . . . . find_dsf 1 | . . . . 1 . . . . . . find_recycling 1 | . . . . 1 . . . . . . Relay Couplers Released . | . . . . . . . . . . . Fabnet Peak Effective % . | . . . . . . . . . . . Robots Rewired . | . . . . . . . . . . . Allies Hacked 1 | . . . . . . . . . . 1 Hacks Repelled . | . . . . . . . . . . . Allies | -11 -10 -9 -8 -7 -6 -5 -4 -4 -4 -3 -------- Run | Jun Mat Mat Mat Fac Fac Fac Fac Upp Upp Res Total Allies 2 | . . . . . . . . . . 2 Largest Group 1 | . . . . . . . . . . 1 Highest-Rated Group 41 | . . . . . . . . . . 41 Highest-Rated Ally 41 | . . . . . . . . . . 41 Total Orders . | . . . . . . . . . . . Ally Attacks 2 | . . . . . . . . . . 2 Total Damage 94 | . . . . . . . . . . 94 Kills 1 | . . . . . . . . . . 1 Allies Corrupted 1 | . . . . . . . . . . 1 Allies Melted . | . . . . . . . . . . . Intel | -11 -10 -9 -8 -7 -6 -5 -4 -4 -4 -3 ------- Run | Jun Mat Mat Mat Fac Fac Fac Fac Upp Upp Res Robot Analysis Total . | . . . . . . . . . . . Derelict Logs Recovered . | . . . . . . . . . . . Drone Launches . | . . . . . . . . . . . Drone Recoveries . | . . . . . . . . . . . Exploration | -11 -10 -9 -8 -7 -6 -5 -4 -4 -4 -3 ------------- Run | Jun Mat Mat Mat Fac Fac Fac Fac Upp Upp Res Turns Passed 11689 | 72 642 727 1824 1341 3190 1492 291 896 42 1172 Spaces Moved 4646 | 57 199 243 757 591 1308 585 146 430 23 307 Core 13 | 13 . . . . . . . . . . Treads . | . . . . . . . . . . . Legs 4633 | 44 199 243 757 591 1308 585 146 430 23 307 Wheels . | . . . . . . . . . . . Hover . | . . . . . . . . . . . Flight . | . . . . . . . . . . . Fastest Speed 50 | 50 120 260 190 190 123 191 191 190 190 186 Average Speed 200 | 104 277 260 197 198 194 192 191 190 190 188 Slowest Speed 400 | 120 400 260 260 265 200 195 191 191 190 260 Overloaded Moves . | . . . . . . . . . . . Propulsion Burnouts . | . . . . . . . . . . . Robots Hopped . | . . . . . . . . . . . Cave-ins Triggered . | . . . . . . . . . . . Exploration Rate (%) 21 | 3 30 19 37 17 31 20 3 56 6 10 Regions Visited 10 Branch Regions 2 Pre-discovered Areas . | . . . . . . . . . . . Known Exits Taken 10 | 1 1 1 1 1 1 1 1 1 1 . Unknown Exits Taken . | . . . . . . . . . . . Scrap Searched . | . . . . . . . . . . . Spaces Dug 1 | . . . . . 1 . . . . . Terrain Destroyed 123 | . . . . . 22 16 44 9 . 32 Melee . | . . . . . . . . . . . Projectile 66 | . . . . . 22 15 . 8 . 21 AOE 48 | . . . . . . . 44 . . 4 Terrain Rammed . | . . . . . . . . . . . Walls Destroyed . | . . . . . . . . . . . Machines Disabled . | . . . . . . . . . . . Actions | -11 -10 -9 -8 -7 -6 -5 -4 -4 -4 -3 --------- Run | Jun Mat Mat Mat Fac Fac Fac Fac Upp Upp Res Total 5905 | 66 239 280 925 688 1664 733 151 462 22 675 Wait 427 | . . . 49 6 123 10 . . . 239 Move 4636 | 56 198 242 756 590 1307 584 145 429 22 307 Hop . | . . . . . . . . . . . Pick Up 64 | 3 9 2 10 7 9 7 1 7 . 9 Fast Attach 25 | 7 . 1 1 2 4 4 . . . 6 Attach 62 | . 1 1 4 7 12 12 2 3 . 20 Detach 8 | . . . . 4 2 1 . . . 1 Swap 50 | . 1 . 6 10 13 8 . 2 . 10 Drop 28 | . 1 1 . 4 12 . . 3 . 7 Fire 580 | . 29 32 96 44 175 107 3 18 . 76 Melee 12 | . . . . 12 . . . . . . Ram . | . . . . . . . . . . . Kick 8 | . . 1 3 2 2 . . . . . Crush . | . . . . . . . . . . . Escape Stasis 5 | . . . . . 5 . . . . . Rewire . | . . . . . . . . . . . Trap . | . . . . . . . . . . . Miscellaneous . | . . . . . . . . . . . Route ------- -11/Junkyard -10/Materials (discovered 3 exits: *Mat x3) -9/Materials -8/Materials -7/Factory -6/Factory -5/Factory (discovered 4 exits: *Fac x4) -4/Factory -4/Upper Caves -4/Upper Caves -3/Research (discovered 4 exits: *Res / Arm / Qua x2) History --------- Turn | Location | Event 3 | -11/Junkyard | Identified exit to Materials 3 | -11/Junkyard | Discovered exit to Materials (range 15) 73 | -11/Junkyard | Entered Materials 73 | -10/Materials | Evolved 1 slot: Utility x1 310 | -10/Materials | Build established: Hacker-Mutant 628 | -10/Materials | Identified exit to Materials 628 | -10/Materials | Discovered exit to Materials (range 10) 715 | -10/Materials | Entered another Materials area 715 | -9/Materials | Evolved 2 slots: Propulsion x2 1229 | -9/Materials | Identified exit to Materials 1229 | -9/Materials | Discovered exit to Materials (range 14) 1442 | -9/Materials | Entered another Materials area 1442 | -8/Materials | Evolved 2 slots: Power x1, Utility x1 1979 | -8/Materials | Build established: Hacker-Skirmisher 2286 | -8/Materials | Repaired Ion Engine 3046 | -8/Materials | Garrison activated, responded to threat 3107 | -8/Materials | Destroyed 9 combat bots 3229 | -8/Materials | Identified exit to Factory 3229 | -8/Materials | Discovered exit to Factory (range 16) 3266 | -8/Materials | Entered Factory 3266 | -7/Factory | Evolved 2 slots: Utility x2 3785 | -7/Factory | Build established: Hacker-Mutant 4590 | -7/Factory | Identified exit to Factory 4590 | -7/Factory | Discovered exit to Factory (range 4) 4607 | -7/Factory | Entered another Factory area 4607 | -6/Factory | Evolved 2 slots: Propulsion x2 7731 | -6/Factory | Identified exit to Factory 7731 | -6/Factory | Discovered exit to Factory (range 14) 7797 | -6/Factory | Entered another Factory area 7797 | -5/Factory | Evolved 2 slots: Power x1, Weapon x1 8087 | -5/Factory | Build established: Hacker-Gunner 8142 | -5/Factory | Lost 7 parts (2p2n1u2w) 9196 | -5/Factory | Identified exit to Factory 9289 | -5/Factory | Entered another Factory area 9289 | -4/Factory | Evolved 2 slots: Utility x1, Weapon x1 9311 | -4/Factory | Build established: Scavenger-Gunner 9383 | -4/Factory | Identified exit to Upper Caves 9383 | -4/Factory | Discovered exit to Upper Caves (range 3) 9580 | -4/Factory | Entered Upper Caves 9824 | -4/Upper Caves | Attracted the attention of an 0b10 outpost 9915 | -4/Upper Caves | Destroyed 9 combat bots 10314 | -4/Upper Caves | Identified exit to Upper Caves 10314 | -4/Upper Caves | Discovered exit to Upper Caves (range 7) 10476 | -4/Upper Caves | Entered another Upper Caves area 10507 | -4/Upper Caves | Identified exit to Research 10507 | -4/Upper Caves | Discovered exit to Research (range 5) 10518 | -4/Upper Caves | Entered Research 10518 | -3/Research | Evolved 2 slots: Weapon x2 10660 | -3/Research | Repaired Flexi-carbon Leg 10712 | -3/Research | Repaired Coil Gun 10763 | -3/Research | Repaired Coil Gun 10833 | -3/Research | Build established: Scavenger-Executioner 11038 | -3/Research | Identified exit to Armory 11038 | -3/Research | Identified exit to Quarantine 11123 | -3/Research | Fabricated H-66 Slayer (x2) 11333 | -3/Research | Found Prototype Hackware 11334 | -3/Research | Identified Exp. Hacking Suite 11353 | -3/Research | Cargo convoy interrupted 11353 | -3/Research | Spotted Striker 11382 | -3/Research | Destroyed Striker 11423 | -3/Research | Lost 10 parts (3p2n5w) 11430 | -3/Research | Destroyed 7 combat bots 11649 | -3/Research | Identified exit to Research 11649 | -3/Research | Discovered exit to Research (range 7) 11650 | -3/Research | Core integrity fell below 50% 11686 | -3/Research | Core integrity fell below 20% 11691 | -3/Research | Core destroyed Last Messages --------------- 11678_ Overheating: Core damaged (-169). 11678_ G-67 Veteran knocked back. 11678_ Slug penetrates G-67 Veteran. 11680_ Power failure averted by Cryofiber Web. 11680_ Overheating: Matter decay (-41). 11681_ Destroyed Adv. Heat Sink. 11681_ Slug penetrates G-73 Enforcer. 11681_ G-73 Enforcer destroyed. 11681_ G-67 Veteran destroyed. 11681_ Slug penetrates Wall. 11682_ Power failure averted by Cryofiber Web. 11682_ Lgt. Angular Momentum Engine broken. 11682_ Overheating: Short circuit. 11683_ Overheating: Matter decay (-50). 11686_ Overheating: Core damaged (-234). 11687_ Slug penetrates P-80 Master. 11687_ P-80 Master knocked back. 11688_ KE Penetrator destroyed. 11689_ Overheating: Myomer Leg damaged (-22). 11691_ Overheating: Core damaged (-208). Map ----- +----------------------------------------------------+ | ?????????????????????????????????????????????????? | | ?????????????????????????????????????????????????? | | ?????????????????????????????????????????????????? | | ?????????????????????????????????????????????????? | | ?????????????????????????????????????????????????? | | ?????????????????????????????????????????????????? | | ?????????????????????????????????????????????????? | | ?????????????????????????????????????????????????? | | ?????????????????????????????????????????????????? | | ????????????????????????? ???????????????????????? | | ????????????????????????? ???????????????????????? | | ????????????????????????? ???????????????????????? | | ????????????????????????? ???????????????????????? | | ????????????????????????? ???????????????????????? | | ?????????????????????????k???????????????????????? | | ????????????????????????? ???????????????????????? | | ????????????????????????# #??????????????????????? | | #??????????????????????## #??????????????????????? | | +??????????????????????? #??????????????????????? | | #??????????????????????? #??????????????????????? | | #??????????????????????? #??????????????????????? | | #??????????????????????? #??????????????????????? | | #???????????????????????#%#????????#?????????????? | | #???????????????????????#m#?????? #?????????????? | | #???????????????????????#=#???? #?????????????? | | #???????????????????????#@#?? #?????????????? | | #########################!#% #?????????????? | | # + * ! =!%%%[=%%%* #?????????????? | | # #########+#####[#= ^#?????????????? | | # #???????![*???#*# #?????????????? | | + #??????? ???#%#? #?????????????? | | # !!]#?????? ??#!#??##/####?????????????? | | # = !!]#??????[ ??#%#????? ???????????????? | | # !]]#?????# ?!p!??????##??????????????? | | # #?????# ?=<*??????????????????????? | | ###########?????########!! ??????????????????????? | | #???????????????????????#;#??????????????????????? | | #???????????????????????? ???????????????????????? | | #???????????????????????? ???????????????????????? | | #???????????????????????? ???????????????????????? | | #???????????????????????? ???????????????????????? | | #####????????????????????????????????????????????? | | #????????????????????????????????????????????? | | #????????????????????????????????????????????? | | #????????????????????????????????????????????? | | "" #????????????????????????????????????????????? | | "" #????????????????????????????????????????????? | | "" #????????????????????????????????????????????? | | "" #????????????????????????????????????????????? | | "" #????????????????????????????????????????????? | +----------------------------------------------------+ Best States ------------- Heat Dissipation 67 Energy Generation 60 Energy Capacity 955 Matter Stores 750 Matter Capacity 750 Sight Range 18 Terrain Scan Range 14 Terrain Scan Density 85 Power Amplification 20 Base Temperature (-) 100 Resistance: KI 35 Resistance: TH 35 Resistance: EX 35 Resistance: EM 35 Resistance: I 35 Resistance: S 35 Resistance: P 35 Core Shielding 30 Propulsion Shielding 33 Weapon Shielding 33 Evasion (%) 55 Targeting Accuracy 14 Armor Integrity Analysis 40 Kinecelleration 30 Offensive Hacking 36 Item Schematics ----------------- Imp. Aluminum Leg | -6/Factory | Scanalyzed Lgt. Angular Momentum Engine | -6/Factory | Scanalyzed Robot Schematics ------------------ H-66 Slayer | -6/Factory | Hacked Fabricated ------------ H-66 Slayer | x2 | -3/Research Alien Tech Used ----------------- None Achievements -------------- None Challenges ------------ None Game ------ Seed ControlAnalysisImmobilizer Manual? 0 Play Time 01:25:57 Cumulative 1265.5 hours Start 2023.03.04 @ 08:37:21 End 2023.03.04 @ 14:31:29 Sessions 3 Manual Loads 0 Difficulty Explorer Special Mode None Game No. 816 Rogue 62 Adventurer 0 Explorer 754 Win Type - Total 6 Types 6/0/0/0/0/0/0/0/0 Lore% 69 Gallery% 80 Achievement% 61 Wizard Run 0 Options --------- ASCII 0 Keyboard 0 Movement Numpad Keybinds 0 Fullscreen 1 Font 36/Smallcaps Map View 76x50 Tactical HUD 1 Map Filters NONE Filters NONE Steam 1 RUN: 71d3ec31-6e80-43f7-a382-356320b335de